Cogmind - Beta 10.2 @@@ ROGUE MODE // 2021.05.08 @ 21:29:58 Player: theq629 Result: Self-destructed Performance ------------- Evolutions (1) 500 Regions Visited (3) 600 Robots Destroyed (15) 75 Value Destroyed (465) 465 Prototype IDs (0) 0 Alien Tech Used (0) 0 Bonus (0) 0 TOTAL SCORE: 1640 Bonus ------- None Cogmind --------- Core Integrity 226/400 Matter 280/300 Energy 95/100 System Corruption 0% Temperature Cool (0) Movement Core (150) Ox2 Location -9/Storage Parts ------- > --- POWER (1) -------- (None) > --- PROPULSION (2) --- (None) > --- UTILITY (3) ------ Small Storage Unit > --- WEAPON (3) ------- Heavy Assault Rifle > --- INVENTORY (6) ---- Ion Engine Light Ion Engine Light Ion Engine Small Laser Peak State ------------ > --- POWER ------------ Ion Engine > --- PROPULSION ------- Wheel Compact Wheel > --- UTILITY ---------- Small Storage Unit ECM Suite Light Armor Plating > --- WEAPON ----------- EM Pulse Gun Light Assault Rifle Improved Light Cannon > --- INVENTORY -------- Light Ion Engine EM Pulse Gun Light Assault Rifle [Rating: 10] Favorites ----------- Power Ion Engine Engine Ion Engine Propulsion Wheel Wheel Wheel Utility Small Storage Unit Device ECM Suite Storage Small Storage Unit Protection Light Armor Plating Weapon Light Assault Rifle Energy Gun EM Pulse Gun Ballistic Gun Light Assault Rifle Ballistic Cannon Improved Light Cannon Build | -11 -10 -9 -9 ------- Run | Scr Mat Mat Sto Slots Evolved 2 | . . 2 . Power . | . . . . Propulsion . | . . . . Utility 1 | . . 1 . Weapon 1 | . . 1 . Parts Attached 15 | 5 2 6 2 Power 2 | 1 . 1 . Engine 2 | 1 . 1 . Core . | . . . . Reactor . | . . . . Propulsion 3 | 2 . 1 . Treads . | . . . . Leg . | . . . . Wheel 3 | 2 . 1 . Hover . | . . . . Flight . | . . . . Utility 3 | . 2 1 . Device 1 | . . 1 . Storage 1 | . 1 . . Processor . | . . . . Hackware . | . . . . Protection 1 | . 1 . . Artifact . | . . . . Weapon 7 | 2 . 3 2 Energy Gun 2 | 1 . 1 . Energy Cannon . | . . . . Ballistic Gun 4 | 1 . 1 2 Ballistic Cannon 1 | . . 1 . Launcher . | . . . . Special Weapon . | . . . . Impact Weapon . | . . . . Slashing Weapon . | . . . . Piercing Weapon . | . . . . Special Melee Weapon . | . . . . Unidentified Prototypes . | . . . . Parts Lost 12 | . . 4 8 Power 1 | . . . 1 Propulsion 3 | . . 1 2 Utility 2 | . . 1 1 Weapon 6 | . . 2 4 Highest Loss Streak 7 | . . 3 7 Average Slot Usage (%) 92 | . 98 93 77 Engine 11 | . 14 11 10 Wheel 22 | . 28 20 20 Device 4 | . . 9 . Storage 11 | . 13 11 11 Protection 10 | . 13 11 5 Energy Gun 11 | . 14 9 10 Ballistic Gun 12 | . 14 10 12 Ballistic Cannon 6 | . . 10 9 Naked Turns . | . . . . Heaviest Build 20 | 8 15 20 17 Greatest Support 26 | 26 26 26 26 Greatest Overweight (x) 1 | 1 . 1 . Average Overweight (x) . | . . . . Largest Inventory Capacity 6 | 4 6 6 6 Average Capacity 5 | 4 5 6 6 Most Carried 6 | 4 4 6 6 Average Carried 3 | 2 3 3 5 Final Capacity 6 | 4 6 6 6 Final Carried 6 | 3 4 6 4 Class Distribution -------------------- 49% | Mutant 44% | Tank 5% | Gunner Dominant Class ---------------- Mutant | -10/Materials Tank | -9/Materials Tank | -9/Storage Resources | -11 -10 -9 -9 ----------- Run | Scr Mat Mat Sto Matter Collected 513 | 201 80 192 40 Remotely . | . . . . Salvage Created 510 | . 88 353 69 Parts 31 | . 6 22 3 Haulers Intercepted . | . . . . Recyclers Shooed . | . . . . Parts Field Recycled . | . . . . Retrieved Matter . | . . . . Parts Self-Destructed . | . . . . Prevented . | . . . . Kills | -11 -10 -9 -9 ------- Run | Scr Mat Mat Sto Combat Hostiles Destroyed 14 | . 2 10 2 Guns 5 | . 2 3 . Cannons 8 | . . 7 1 AOE 1 | . . . 1 Classes Destroyed 4 | . 1 3 . Recycler 1 | . . 1 . Swarmer 3 | . . 3 . Grunt 9 | . 2 5 2 Sentry 2 | . . 2 . Best Kill Streak 3 | . 1 3 2 Combat Bots Only 3 | . 1 3 2 Max Kills in Single Turn 1 | . 1 1 1 Gunslinging . | . . . . Exploded 1 | . . . 1 Melee . | . . . . Uniques/NPCs Destroyed . | . . . . Combat | -11 -10 -9 -9 -------- Run | Scr Mat Mat Sto Damage Taken 1095 | . 99 481 515 Core 194 | . 20 102 72 Absorbed by Shields . | . . . . Core Remaining (%) 96 | 100 92 . . Volleys Fired 60 | . 11 33 16 Largest 3 | . 2 3 3 Hottest 99 | . 60 99 99 Shots Fired 144 | . 22 84 38 Gun 101 | . 22 51 28 Cannon 43 | . . 33 10 Launcher . | . . . . Special . | . . . . Kinetic 99 | . 11 63 25 Thermal . | . . . . Explosive . | . . . . Electromagnetic 45 | . 11 21 13 Robot Hit Streak 14 | . 5 14 7 Robot Miss Streak 6 | . 2 6 5 Penetration Max . | . . . . Secondary Targets 1 | . 1 . . Max Gunslinging Chain 1 | . 1 . . Shots Hit Robots 89 | . 15 50 24 Core Hits 25 | . 2 19 4 Critical Hits 1 | . . 1 . Critical Kills . | . . . . Critical Parts Destroyed 1 | . . 1 . Melee Attacks . | . . . . Impact . | . . . . Slashing . | . . . . Piercing . | . . . . Sneak Attacks . | . . . . Combat Hostiles . | . . . . Follow-up Attacks . | . . . . Damage Inflicted 1214 | . 124 726 364 Guns 624 | . 124 312 188 Cannons 519 | . . 414 105 Explosions 71 | . . . 71 Melee . | . . . . Ramming . | . . . . Kinetic 794 | . 43 561 190 Thermal 71 | . . . 71 Explosive . | . . . . Electromagnetic 349 | . 81 165 103 Impact . | . . . . Slashing . | . . . . Piercing . | . . . . Highest Corruption . | . . . . Average Corruption . | . . . . Corruption Purged . | . . . . Overload Shots . | . . . . Overflow Damage . | . . . . Projectiles . | . . . . Explosions . | . . . . Melee . | . . . . Knockbacks 2 | . . 1 1 Impact . | . . . . Kinetic 2 | . . 1 1 Secondary . | . . . . Self-Inflicted Damage . | . . . . Shots . | . . . . Rammed . | . . . . Targets Rammed . | . . . . Kicked . | . . . . Crushed . | . . . . Highest Temperature 324 | . 195 324 303 Average Temperature 123 | . 92 133 122 Received Heat Transfer 336 | . 54 162 120 Effects 2 | . . 2 . Interference 2 | . . 2 . Siege Activations . | . . . . Robots Corrupted . | . . . . Combat Hostiles . | . . . . Parts Fried . | . . . . Impact Corruptions . | . . . . Robots Melted . | . . . . Combat Hostiles . | . . . . Parts Melted . | . . . . Heat Transferred 100 | . . . 100 Parts Sabotaged . | . . . . Parts Stolen . | . . . . Parts Stripped . | . . . . Power Chain Reactions 1 | . . . 1 Missiles Intercepted . | . . . . Alert | -11 -10 -9 -9 ------- Run | Scr Mat Mat Sto Peak Influence 336 | . 75 336 196 Initial 141 | . . 31 141 Average 104 | . 12 171 159 Maximum Alert Level 1 | . . 1 . Low Security (%) 78 | 100 100 50 100 Level 1 21 | . . 49 . Level 2 . | . . . . Level 3 . | . . . . Level 4 . | . . . . Level 5 . | . . . . High Security . | . . . . Max Security . | . . . . Squads Dispatched 4 | . 2 1 1 Investigation . | . . . . Extermination . | . . . . Reinforcement 3 | . 2 1 . Assault . | . . . . Garrison 1 | . . . 1 Intercept . | . . . . Construction Impeded . | . . . . Haulers Reinforced . | . . . . Stealth | -11 -10 -9 -9 --------- Run | Scr Mat Mat Sto Distress Signals 1 | . 1 . . Communications Jammed . | . . . . Distress Signals . | . . . . Times Spotted 25 | . 5 14 6 Peak Tracking Total 5 | . 2 4 5 Tactical Retreats 4 | . . 3 1 Traps | -11 -10 -9 -9 ------- Run | Scr Mat Mat Sto Traps Triggered 1 | . . . 1 Indirectly . | . . . . Trap Hack Attempts . | . . . . Triggered . | . . . . Disarmed . | . . . . Reprogrammed . | . . . . Reused . | . . . . Traps Extracted . | . . . . Installed . | . . . . Triggered . | . . . . Machines | -11 -10 -9 -9 ---------- Run | Scr Mat Mat Sto Machines Disabled 2 | . 1 1 . Max in Single Turn 1 | . 1 1 . Machines Sabotaged . | . . . . Garrisons Compromised . | . . . . Overloaded Fab Kills . | . . . . Fab Network Shutdowns . | . . . . Hacking | -11 -10 -9 -9 --------- Run | Scr Mat Mat Sto Machines Accessed 4 | . . 4 . Terminals 3 | . . 3 . Fabricators . | . . . . Repair Stations . | . . . . Recycling Units 1 | . . 1 . Scanalyzers . | . . . . Garrison Access . | . . . . Total Hacks 4 | . . 4 . Successful 3 | . . 3 . Failed 1 | . . 1 . Catastrophic . | . . . . Database Lockouts . | . . . . Manual . | . . . . Terminals 3 | . . 3 . Fabricators . | . . . . Repair Stations . | . . . . Recycling Units 1 | . . 1 . Scanalyzers . | . . . . Garrison Access . | . . . . Terminal Hacks 2 | . . 2 . Record 2 | . . 2 . Fabricator Hacks . | . . . . Repair Station Hacks . | . . . . Recycling Unit Hacks 1 | . . 1 . Report Inventory 1 | . . 1 . Scanalyzer . | . . . . Garrison Access Hacks . | . . . . Unauthorized Hacks . | . . . . Terminals . | . . . . Fabricators . | . . . . Repair Stations . | . . . . Recycling Units . | . . . . Scanalyzers . | . . . . Garrison Access . | . . . . Data Cores Recovered . | . . . . Used . | . . . . Hacking Detections . | . . . . Full Trace Events . | . . . . Feedback Events . | . . . . Feedback Blocked . | . . . . Robot Schematics Acquired . | . . . . Robots Built . | . . . . Matter . | . . . . Time . | . . . . Total Robot Build Rating . | . . . . Part Schematics Acquired . | . . . . Parts Built . | . . . . Matter . | . . . . Time . | . . . . Total Part Build Rating . | . . . . Parts Repaired . | . . . . Time . | . . . . Parts Recycled . | . . . . Recycled Matter . | . . . . Retrieved Matter . | . . . . Retrieved Components . | . . . . Parts Scanalyzed . | . . . . Part Schematics Acquired . | . . . . Parts Damaged . | . . . . Bothacking | -11 -10 -9 -9 ------------ Run | Scr Mat Mat Sto Used RIF Installer . | . . . . Robots Hacked . | . . . . Non-combat . | . . . . Combat . | . . . . Robot Hacks Applied . | . . . . Relay Couplers Released . | . . . . Robots Rewired . | . . . . Allies Hacked . | . . . . Hacks Repelled . | . . . . Allies | -11 -10 -9 -9 -------- Run | Scr Mat Mat Sto Total Allies . | . . . . Largest Group . | . . . . Highest-Rated Group . | . . . . Highest-Rated Ally . | . . . . Total Orders . | . . . . Ally Attacks . | . . . . Total Damage . | . . . . Kills . | . . . . Allies Corrupted . | . . . . Allies Melted . | . . . . Intel | -11 -10 -9 -9 ------- Run | Scr Mat Mat Sto Robot Analysis Total . | . . . . Derelict Logs Recovered . | . . . . Drone Launches . | . . . . Drone Recoveries . | . . . . Exploration | -11 -10 -9 -9 ------------- Run | Scr Mat Mat Sto Turns Passed 675 | 64 208 287 116 Spaces Moved 496 | 61 184 177 74 Core 18 | 18 . . . Treads . | . . . . Legs . | . . . . Wheels 478 | 43 184 177 74 Hover . | . . . . Flight . | . . . . Fastest Speed 50 | 50 90 90 80 Average Speed 89 | 83 90 90 89 Slowest Speed 100 | 100 90 90 90 Overloaded Moves . | . . . . Propulsion Burnouts . | . . . . Robots Hopped . | . . . . Cave-ins Triggered . | . . . . Exploration Rate (%) 18 | 4 31 23 15 Regions Visited 3 Branch Regions 1 Pre-discovered Areas . | . . . . Known Exits Taken . | . . . . Unknown Exits Taken 3 | 1 1 1 . Scrap Searched . | . . . . Spaces Dug . | . . . . Terrain Destroyed 5 | . . 2 3 Melee . | . . . . Projectile 2 | . . 2 . AOE 3 | . . . 3 Terrain Rammed . | . . . . Walls Destroyed . | . . . . Machines Disabled . | . . . . Actions | -11 -10 -9 -9 --------- Run | Scr Mat Mat Sto Total 616 | 73 206 242 95 Wait 26 | . 5 18 3 Move 493 | 60 183 176 74 Hop . | . . . . Pick Up 20 | 8 4 8 . Fast Attach . | . . . . Attach 15 | 5 2 6 2 Detach . | . . . . Swap . | . . . . Drop 2 | . 1 1 . Fire 60 | . 11 33 16 Melee . | . . . . Ram . | . . . . Kick . | . . . . Crush . | . . . . Escape Stasis . | . . . . Rewire . | . . . . Trap . | . . . . Miscellaneous . | . . . . Route ------- -11/Scrapyard -10/Materials -9/Materials -9/Storage History --------- Turn | Location | Event 9 | -11/Scrapyard | Discovered new exit (range 16) 65 | -11/Scrapyard | Entered Materials 227 | -10/Materials | Discovered new exit (range 16) 273 | -10/Materials | Entered another Materials area 273 | -9/Materials | Evolved 2 slots: Utility x1, Weapon x1 456 | -9/Materials | Lost 3 parts (1n2w) 512 | -9/Materials | Discovered new exit (range 11) 560 | -9/Materials | Entered Storage 665 | -9/Storage | Garrison activated, responded to threat 676 | -9/Storage | Self-destructed Last Messages --------------- 00625_ An explosion rips through the floor. 00625_ U-05 Engineer lays Concrete. 00632_ Connecting with Door Terminal... 00632_ Current location identified: Storage 00633_ U-05 Engineer lays Concrete. 00638_ Acquired 25 matter. 00639_ Acquired 15 matter. 00642_ U-05 Engineer lays Concrete. 00656_ Imp. Light Cannon destroyed. 00659_ Com. Wheel destroyed. 00662_ Lgt. Assault Rifle destroyed. 00663_ U-05 Engineer lays Concrete. 00664_ Lgt. Ion Engine destroyed. 00664_ U-05 Engineer lays Concrete. 00665_ Y-45 Defender calls for garrison reinforcements. 00665_ ALERT: Activating Garrison Access S001. 00665_ EM Pulse Gun destroyed. 00666_ U-05 Engineer lays Concrete. 00671_ Lgt. Assault Rifle destroyed. 00675_ Wheel destroyed. Map ----- +----------------------------------------------------+ | ????????????????????????????????????? | | ????????????????????????????????????? | | ????????????????????????????????????? | | ????????????????????????????????????? | | ????????????????????????????????????? | | ????????????????????????????????????? | | ????????????????????????????????????? | | ????????????????????????????????????? | | ????????????????????????????????????? | | ????????????????????????????????????? | | ????????????????????????? ????????? | | ???????????????????? ??? #???????? | | ???????????????????? ??? #???????? | | ???????????????????? ??? #???????? | | ???????????????????? """ +???????? | | ????????????????????? """ #???????? | | ????????????????????? """ #???????? | | ????????????????????? #???????? | | ????????????????????? #???????? | | ????????????????????##+##s #???????? | | ????????????????????# # #???????? | | ????????????????#???# [ # #???????? | | ???????????????## ??#! ]# #???????? | | ???????????????# ##!] # #???????? | | ???????????????# Y # #???????? | | ????????????????????# s@ #???????? | | ????????????????????# s[# #???????? | | ????????????????????##### % ##??????? | | ???????????????????????#; ;#??????? | | ???????????????????????## ##??????? | | ????????????????????????# u #???????? | | ????????????????????????# #???????? | | ????????????????????????# ######??? | | ????????????????????????# # "==#??? | | ????????????????????????# / ==#??? | | ????????????????????????# # "==#??? | | ????????????????????????# T####??? | | ????????????????????????# ##?????? | | ??????????????????####### ##??????? | | ??????????????????# # #??????? | | ??????????????????# ##??????? | | ??????????????????# """ # #???????? | | ??????????????????# """ # #???????? | | ??????????????????# """ # #???????? | | ??????????????????# + #???????? | | ??????????????????# """ # #???????? | | ??????????????????# """ # #???????? | | ??????????????????# """ # #???????? | | ??????????????????# # #???????? | | ??????????????????# # #???????? | +----------------------------------------------------+ Best States ------------- Heat Dissipation 28 Energy Generation 10 Energy Capacity 250 Matter Stores 300 Matter Capacity 300 Sight Range 16 Terrain Scan Density 10 ECM Strength 1 Armor Coverage 150 Evasion (%) 50 Item Schematics ----------------- None Robot Schematics ------------------ None Fabricated ------------ Nothing Alien Tech Used ----------------- None Achievements -------------- None Challenges ------------ None Game ------ Seed DecoyControlDiverter Manual? 0 Play Time 00:15:38 Cumulative 20.4 hours Start 2021.05.08 @ 20:04:16 End 2021.05.08 @ 21:29:58 Sessions 1 Manual Loads 0 Difficulty Rogue Special Mode None Game No. 20 Rogue 5 Adventurer 0 Explorer 15 Win Type - Total 0 Types 0/0/0/0/0/0/0/0/0 Lore% 20 Gallery% 26 Achievement% 18 Wizard Run 0 Options --------- ASCII 0 Keyboard 0 Movement Vi Keybinds 0 Fullscreen 2 Font 24/Terminus Map View 76x50 Tactical HUD 1 Map Filters NONE Filters NONE Steam 1 RUN: 509457df-2cc8-48c1-94e6-43ee9506e081